bitfinex-derivatives/quotes_BNBF0:USTF0_20260221
["timestamp","ask_amount","ask_price","bid_price","bid_amount"]
[1771639986765,1.19328568,628.45,627.96,0.31858285]
[1771639987062,1.19328568,628.45,627.97,0.31858285]
[1771639987264,1.19328568,628.45,627.98,0.31858285]
[1771639987464,1.19328568,628.45,627.99,0.31858285]
[1771639987660,1.19328568,628.45,628.0,0.31858285]
[1771639987864,1.19328568,628.45,628.01,0.31858285]
[1771639988068,1.19328568,628.45,628.02,0.31858285]
[1771639988261,1.19328568,628.45,628.03,0.31858285]
[1771639988465,1.19328568,628.45,628.04,0.31858285]
[1771639988666,1.19328568,628.45,628.05,0.31858285]
[1771639988863,1.19328568,628.45,628.06,0.31858285]
[1771639989066,1.19328568,628.45,628.07,0.31858285]
[1771639989266,1.19328568,628.45,627.87,1.18457547]
[1771639989267,1.19328568,628.45,628.08,0.31858285]
[1771639989464,1.19328568,628.45,628.09,0.31858285]
[1771639989664,1.19328568,628.45,628.1,0.31858285]
[1771639989863,1.19328568,628.45,628.11,0.31858285]
[1771639990067,1.19328568,628.45,628.12,0.31858285]
[1771639990265,1.19328568,628.44,628.13,0.31858285]
[1771639990569,1.19328568,628.44,628.14,0.31858285]
[1771639990868,1.19328568,628.44,628.15,0.31858285]
[1771639991069,1.19328568,628.44,628.16,0.31858285]
[1771639991267,1.19328568,628.44,628.17,0.31858285]
[1771639991565,1.19328568,628.44,628.18,0.31858285]
[1771639991867,1.19328568,628.44,628.19,0.31858285]
[1771639992165,1.19328568,628.44,628.2,0.31858285]
[1771639992369,1.19328568,628.44,628.21,0.31858285]
[1771639992663,1.19328568,628.44,628.22,0.31858285]
[1771639992864,1.19328568,628.44,628.23,0.31858285]
[1771639993066,1.19328568,628.44,628.24,0.31858285]
[1771639993266,1.19328568,628.44,628.25,0.31858285]
[1771639993469,1.19328568,628.44,628.26,0.31858285]
[1771639993670,1.19328568,628.44,628.27,0.31858285]
[1771639993969,1.19328568,628.44,628.28,0.31858285]
[1771639994169,1.19328568,628.44,628.29,0.31858285]
[1771639994469,1.19328568,628.43,628.3,0.31858285]
[1771639994666,1.19328568,628.43,628.31,0.31858285]
[1771639994871,1.19328568,628.43,628.32,0.31858285]
[1771639995171,1.19328568,628.51,628.33,0.31858285]
[1771639995370,1.19328568,628.52,628.34,0.31858285]
[1771639995571,1.19328568,628.52,628.35,0.31858285]
[1771639995867,1.59104758,628.63,628.36,0.31858285]
[1771639996066,1.19384779,628.52,628.37,0.31858285]
[1771639996366,1.19384779,628.53,628.38,0.31858285]
[1771639996570,1.19384779,628.53,628.39,0.31858285]
[1771639996770,1.19384779,628.53,627.95,1.18442131]
[1771639996771,1.19384779,628.53,628.4,0.31858285]
[1771639996968,1.19384779,628.53,628.41,0.31858285]
[1771639997167,1.19384779,628.53,628.42,0.31858285]
[1771639997370,1.19384779,628.53,628.43,0.31858285]
[1771639997568,1.19384779,628.53,628.44,0.31858285]
[1771639997768,1.19384779,628.53,627.94,1.18442131]
[1771639997769,1.19384779,628.53,628.45,0.31858285]
[1771639998072,1.19384779,628.53,628.46,0.31858285]
[1771639998373,1.19384779,628.53,628.47,0.31858285]
[1771639998567,1.19384779,628.53,627.94,1.18442131]
[1771639998568,1.19384779,628.52,628.48,0.31858285]
[1771639998772,1.19384779,628.52,628.49,0.31858285]
[1771639998969,1.19384779,628.52,627.92,1.18442131]
[1771639999170,1.19384779,628.52,627.93,0.3185515]
[1771639999368,1.19384779,628.52,627.94,0.3185515]
[1771639999570,1.19384779,628.52,627.95,0.3185515]
[1771639999770,1.19384779,628.52,627.96,0.3185515]
[1771640000069,1.19384779,628.52,627.97,0.3185515]
[1771640000273,1.19384779,628.52,627.98,0.3185515]
[1771640000471,1.19384779,628.52,627.99,0.3185515]
[1771640000672,1.19384779,628.52,628.0,0.3185515]
[1771640000876,1.19384779,628.52,628.01,0.3185515]
[1771640001172,1.19384779,628.52,628.02,0.3185515]
[1771640001375,1.19384779,628.52,628.03,0.3185515]
[1771640001572,1.19384779,628.52,628.04,0.3185515]
[1771640001777,1.19384779,628.52,628.05,0.3185515]
[1771640001979,1.19384779,628.52,628.06,0.3185515]
[1771640002273,1.19384779,628.52,628.07,0.3185515]
[1771640002575,1.19384779,628.52,628.08,0.3185515]
[1771640002875,1.19384779,628.52,628.09,0.3185515]
[1771640003174,1.19384779,628.52,628.1,0.3185515]
[1771640003378,1.19384779,628.52,628.11,0.3185515]
[1771640003574,1.19384779,628.52,628.12,0.3185515]
[1771640003775,1.19384779,628.52,628.13,0.3185515]
[1771640004078,1.19384779,628.52,628.14,0.3185515]
[1771640004277,1.19384779,628.53,628.15,0.3185515]
[1771640004477,1.19384779,628.53,628.16,0.3185515]
[1771640004676,1.19384779,628.53,628.17,0.3185515]
[1771640004879,1.19384779,628.49,628.18,0.3185515]
[1771640005180,1.19384779,628.49,628.19,0.3185515]
[1771640005379,1.19384779,628.49,627.9,1.361]
[1771640005380,1.19384779,628.49,628.2,0.3185515]
[1771640005580,1.19384779,628.49,628.21,0.3185515]
[1771640005780,1.19384779,628.49,628.22,0.3185515]
[1771640005975,1.19384779,628.49,628.23,0.3185515]
[1771640006178,1.19384779,628.49,628.24,0.3185515]
[1771640006475,1.19384779,628.49,628.25,0.3185515]
[1771640006679,1.19384779,628.49,628.26,0.3185515]
[1771640006876,1.19384779,628.49,628.27,0.3185515]
[1771640007181,1.19384779,628.49,628.28,0.3185515]
[1771640007476,1.19384779,628.49,628.29,0.3185515]
[1771640007781,1.19384779,628.49,628.3,0.3185515]
[1771640007981,1.19384779,628.49,628.31,0.3185515]
[1771640008183,1.19384779,628.49,628.32,0.3185515]
[1771640008377,1.19384779,628.49,628.33,0.3185515]
[1771640008580,1.19384779,628.49,628.34,0.3185515]
[1771640008777,1.19384779,628.49,628.35,0.3185515]
[1771640008977,1.19384779,628.5,628.36,0.3185515]
[1771640009178,1.19384779,628.5,628.37,0.3185515]
[1771640009481,1.19384779,628.5,628.38,0.3185515]
[1771640009683,1.19384779,628.5,628.39,0.3185515]
[1771640009982,1.19384779,628.5,628.4,0.3185515]
[1771640010177,1.19384779,628.5,628.41,0.3185515]
[1771640010382,1.19384779,628.5,628.42,0.3185515]
[1771640010579,1.19384779,628.5,628.43,0.3185515]
[1771640010783,1.19384779,628.5,628.44,0.3185515]
[1771640010984,1.19384779,628.5,627.88,1.18442131]
[1771640011183,1.19384779,628.5,627.89,0.31855056]
[1771640011382,1.19384779,628.5,627.9,0.31855056]
[1771640011581,1.19384779,628.5,627.91,0.31855056]
[1771640011780,1.19384779,628.5,627.92,0.31855056]
[1771640012083,1.19384779,628.5,627.93,0.31855056]
[1771640012378,1.19384779,628.5,627.94,0.31855056]
[1771640012578,1.19384779,628.49,627.95,0.31855056]
[1771640012782,1.19384779,628.49,627.96,0.31855056]
[1771640012982,1.19384779,628.49,627.97,0.31855056]
[1771640013182,1.19384779,628.49,627.98,0.31855056]
[1771640013485,1.19384779,628.49,627.99,0.31855056]
[1771640013784,1.19384779,628.49,628.0,0.31855056]
[1771640013984,1.19384779,628.49,628.01,0.31855056]
[1771640014184,1.19384779,628.49,628.02,0.31855056]
[1771640014382,1.19384779,628.49,628.03,0.31855056]
[1771640014579,1.19384779,628.49,628.04,0.31855056]
[1771640014785,1.19384779,628.52,628.05,0.31855056]
[1771640015084,1.19384779,628.52,628.06,0.31855056]
[1771640015380,1.19384779,628.52,628.07,0.31855056]
[1771640015585,1.19384779,628.52,628.08,0.31855056]
[1771640015780,1.19384779,628.52,628.09,0.31855056]
[1771640015980,1.19384779,628.52,628.1,0.31855056]
[1771640016284,1.19384779,628.52,628.11,0.31855056]
[1771640016485,1.19384779,628.52,628.12,0.31855056]
[1771640016684,1.19384779,628.52,628.13,0.31855056]
[1771640016879,1.19384779,628.52,628.14,0.31855056]
[1771640017084,1.19384779,628.52,628.15,0.31855056]
[1771640017282,1.19384779,628.52,628.16,0.31855056]
[1771640017481,1.19384779,628.52,627.9,1.18442131]
[1771640017482,1.19384779,628.52,628.17,0.31855056]
[1771640017682,1.19384779,628.52,628.18,0.31855056]
[1771640017886,1.19384779,628.52,628.19,0.31855056]
[1771640018085,1.19384779,628.52,628.2,0.31855056]
[1771640018284,1.19384779,628.52,628.21,0.31855056]
[1771640018488,1.19384779,628.52,627.9,1.18442131]
[1771640018489,1.19384779,628.52,628.22,0.31855056]
[1771640018784,1.19384779,628.52,628.23,0.31855056]
[1771640018988,1.19384779,628.52,628.24,0.31855056]
[1771640019188,1.19384779,628.52,627.9,1.18442131]
[1771640019189,1.19384779,628.52,628.25,0.31855056]
[1771640019487,1.19384779,628.52,628.26,0.31855056]
[1771640019686,1.19384779,628.52,628.27,0.31855056]
[1771640019885,1.19384779,628.52,628.28,0.31855056]
[1771640020090,1.19384779,628.52,628.29,0.31855056]
[1771640020284,1.19384779,628.52,628.3,0.31855056]
[1771640020485,1.59104758,628.63,628.31,0.31855056]
[1771640020786,1.19274492,628.52,628.32,0.31855056]
[1771640020990,1.19274492,628.52,628.33,0.31855056]
[1771640021189,1.19274492,628.52,628.34,0.31855056]
[1771640021485,1.19274492,628.52,628.35,0.31855056]
[1771640021685,1.19274492,628.52,628.36,0.31855056]
[1771640021887,1.19274492,628.52,628.37,0.31855056]
[1771640022091,1.19274492,628.52,628.38,0.31855056]
[1771640022288,1.19274492,628.52,628.39,0.31855056]
[1771640022589,1.19274492,628.52,628.4,0.31855056]
[1771640022890,1.19274492,628.52,628.41,0.31855056]
[1771640023088,1.19274492,628.52,628.42,0.31855056]
[1771640023292,1.19274492,628.52,628.43,0.31855056]
[1771640023490,1.19274492,628.52,628.44,0.31855056]
[1771640023688,1.19274492,628.52,628.45,0.31855056]
[1771640023889,1.19274492,628.52,628.46,0.31855056]
[1771640024089,1.19274492,628.52,627.91,1.18363079]
[1771640024293,1.19274492,628.52,627.92,0.3185547]
[1771640024488,1.19274492,628.52,627.93,0.3185547]
[1771640024693,1.19274492,628.52,627.94,0.3185547]
[1771640024893,1.19274492,628.5,627.95,0.3185547]
[1771640025094,1.19274492,628.5,627.96,0.3185547]
[1771640025290,1.19274492,628.5,627.97,0.3185547]
[1771640025494,1.19274492,628.5,627.98,0.3185547]
[1771640025694,1.19274492,628.5,627.99,0.3185547]
[1771640025893,1.19274492,628.49,628.0,0.3185547]
[1771640026094,1.19274492,628.49,628.01,0.3185547]
[1771640026294,1.19274492,628.49,628.02,0.3185547]
[1771640026494,1.19274492,628.49,628.03,0.3185547]
[1771640026696,1.19274492,628.49,628.04,0.3185547]
[1771640026895,1.19274492,628.49,628.05,0.3185547]
[1771640027191,1.19274492,628.49,628.06,0.3185547]
[1771640027393,1.19274492,628.49,628.07,0.3185547]
[1771640027591,1.19274492,628.49,628.08,0.3185547]
[1771640027790,1.19274492,628.49,628.09,0.3185547]
[1771640027993,1.19274492,628.49,628.1,0.3185547]
[1771640028193,1.19274492,628.49,628.11,0.3185547]
[1771640028396,1.19274492,628.48,628.12,0.3185547]
[1771640028594,1.19274492,628.48,628.13,0.3185547]
[1771640028797,1.19274492,628.48,628.14,0.3185547]
[1771640028997,1.19274492,628.48,628.15,0.3185547]
[1771640029194,1.19274492,628.48,628.16,0.3185547]
[1771640029393,1.19274492,628.48,628.17,0.3185547]
[1771640029594,1.19274492,628.48,628.18,0.3185547]
[1771640029797,1.19274492,628.48,628.19,0.3185547]
[1771640029996,1.19274492,628.48,628.2,0.3185547]
[1771640030299,1.19274492,628.48,628.21,0.3185547]
[1771640030496,1.19274492,628.48,627.88,1.18363079]
[1771640030497,1.19274492,628.48,628.22,0.3185547]
[1771640030800,1.19274492,628.48,628.23,0.3185547]
[1771640030996,1.19274492,628.48,628.24,0.3185547]
[1771640031200,1.19274492,628.48,628.25,0.3185547]
[1771640031396,1.19274492,628.48,628.26,0.3185547]
[1771640031600,1.19274492,628.48,628.27,0.3185547]
[1771640031797,1.19274492,628.48,628.28,0.3185547]
[1771640032100,1.19274492,628.48,628.29,0.3185547]
[1771640032400,1.19274492,628.48,628.3,0.3185547]
[1771640032600,1.19274492,628.48,628.31,0.3185547]
[1771640032800,1.19274492,628.48,628.32,0.3185547]
[1771640033001,1.19274492,628.48,628.33,0.3185547]
[1771640033202,1.19274492,628.48,628.34,0.3185547]
[1771640033403,1.19274492,628.48,628.35,0.3185547]
[1771640033698,1.19274492,628.48,628.36,0.3185547]
[1771640033900,1.19274492,628.48,628.37,0.3185547]
[1771640034103,1.19274492,628.48,628.38,0.3185547]
[1771640034401,1.19274492,628.48,628.39,0.3185547]
[1771640034702,1.19274492,628.48,628.4,0.3185547]
[1771640034999,1.19274492,628.5,628.41,0.3185547]
[1771640035202,1.19274492,628.5,628.42,0.3185547]
[1771640035502,1.19274492,628.5,628.43,0.3185547]
[1771640035700,1.19274492,628.5,628.44,0.3185547]
[1771640035901,1.19274492,628.5,628.45,0.3185547]
[1771640036103,1.19274492,628.5,628.46,0.3185547]
[1771640036300,1.19274492,628.5,628.47,0.3185547]
[1771640036606,1.19274492,628.5,627.91,1.18363079]
[1771640036805,1.19274492,628.5,627.92,0.31856219]
[1771640037000,1.19274492,628.5,627.93,0.31856219]
[1771640037205,1.19274492,628.5,627.94,0.31856219]
[1771640037406,1.19274492,628.49,627.95,0.31856219]
[1771640037705,1.19274492,628.49,627.96,0.31856219]
[1771640037902,1.19274492,628.49,627.97,0.31856219]
[1771640038106,1.19274492,628.49,627.98,0.31856219]
[1771640038302,1.19274492,628.49,627.99,0.31856219]
[1771640038605,1.19274492,628.49,628.0,0.31856219]
[1771640038900,1.19274492,628.49,628.01,0.31856219]
[1771640039105,1.19274492,628.5,628.02,0.31856219]
[1771640039306,1.19274492,628.5,627.93,1.18363079]
[1771640039307,1.19274492,628.5,628.03,0.31856219]
[1771640039502,1.19274492,628.5,628.04,0.31856219]
[1771640039707,1.19274492,628.5,628.05,0.31856219]
[1771640039907,1.19274492,628.5,628.06,0.31856219]
[1771640040106,1.19274492,628.5,628.07,0.31856219]
[1771640040307,1.19274492,628.5,628.08,0.31856219]
[1771640040504,1.19274492,628.5,628.09,0.31856219]
[1771640040705,1.19274492,628.5,628.1,0.31856219]
[1771640040903,1.19274492,628.5,628.11,0.31856219]
[1771640041203,1.19274492,628.5,628.12,0.31856219]
[1771640041407,1.19274492,628.5,628.13,0.31856219]
[1771640041604,1.19274492,628.5,628.14,0.31856219]
[1771640041808,1.19274492,628.5,628.15,0.31856219]
[1771640042009,1.19274492,628.5,628.16,0.31856219]
[1771640042311,1.19274492,628.5,628.17,0.31856219]
[1771640042511,1.19274492,628.5,628.18,0.31856219]
[1771640042712,1.19274492,628.5,628.19,0.31856219]
[1771640042911,1.19274492,628.5,628.2,0.31856219]
[1771640043112,1.19274492,628.5,628.21,0.31856219]
[1771640043409,1.19274492,628.5,628.22,0.31856219]
[1771640043612,1.19274492,628.5,628.23,0.31856219]
[1771640043811,1.19274492,628.5,628.24,0.31856219]
[1771640044009,1.19274492,628.5,628.25,0.31856219]
[1771640044209,1.19274492,628.5,628.26,0.31856219]
[1771640044414,1.19274492,628.5,628.27,0.31856219]
[1771640044613,1.19274492,628.5,627.94,1.18363079]
[1771640044614,1.19274492,628.5,628.28,0.31856219]
[1771640044812,1.19274492,628.5,628.29,0.31856219]
[1771640045017,1.19274492,628.5,628.3,0.31856219]
[1771640045217,1.19274492,628.5,628.31,0.31856219]
[1771640045416,1.19274492,628.5,628.32,0.31856219]
[1771640045615,1.19274492,628.5,628.33,0.31856219]
[1771640045817,1.19274492,628.5,628.34,0.31856219]
[1771640046112,1.19274492,628.5,628.35,0.31856219]
[1771640046317,1.19274492,628.5,628.36,0.31856219]
[1771640046515,1.19274492,628.5,628.37,0.31856219]
[1771640046713,1.19274492,628.5,628.38,0.31856219]
[1771640046918,1.19274492,628.5,628.39,0.31856219]
[1771640047119,1.19274492,628.5,628.4,0.31856219]
[1771640047319,1.19274492,628.5,628.41,0.31856219]
[1771640047620,1.19274492,628.5,628.42,0.31856219]
[1771640047915,1.19274492,628.5,628.43,0.31856219]
[1771640048117,1.19274492,628.5,628.44,0.31856219]
[1771640048317,1.19274492,628.5,628.45,0.31856219]
[1771640048515,1.19274492,628.5,628.46,0.31856219]
[1771640048714,1.19274492,628.5,628.47,0.31856219]
[1771640048919,1.19274492,628.5,628.48,0.31856219]
[1771640049120,1.19274492,628.5,627.94,1.18363079]
[1771640049417,1.19274492,628.5,627.95,0.31856193]
[1771640049717,1.19274492,628.5,627.96,0.31856193]
[1771640050018,1.19274492,628.5,627.97,0.31856193]
[1771640050219,1.19274492,628.5,627.98,0.31856193]
[1771640050520,1.19274492,628.5,627.99,0.31856193]
[1771640050821,1.19274492,628.5,628.0,0.31856193]
[1771640051021,1.19274492,628.5,628.01,0.31856193]
[1771640051317,1.19274492,628.5,628.02,0.31856193]
[1771640051519,1.19274492,628.5,628.03,0.31856193]
[1771640051722,1.19274492,628.5,628.04,0.31856193]
[1771640051921,1.19274492,628.5,628.05,0.31856193]
[1771640052223,1.19274492,628.5,628.06,0.31856193]
[1771640052423,1.19274492,628.5,628.07,0.31856193]
[1771640052624,1.19274492,628.5,628.08,0.31856193]
[1771640052919,1.19274492,628.5,628.09,0.31856193]
[1771640053121,1.19274492,628.5,628.1,0.31856193]
[1771640053326,1.19274492,628.5,628.11,0.31856193]
[1771640053523,1.19274492,628.5,628.12,0.31856193]
[1771640053825,1.19274492,628.5,628.13,0.31856193]
[1771640054025,1.19274492,628.5,628.14,0.31856193]
[1771640054322,1.19274492,628.5,628.15,0.31856193]
[1771640054526,1.19274492,628.5,628.16,0.31856193]
[1771640054722,1.19274492,628.5,628.17,0.31856193]
[1771640054923,1.19274492,628.47,628.18,0.31856193]
[1771640055122,1.19274492,628.47,628.19,0.31856193]
[1771640055422,1.19274492,628.47,628.2,0.31856193]
[1771640055623,1.19274492,628.51,628.21,0.31856193]
[1771640055823,1.19274492,628.59,628.22,0.31856193]
[1771640056126,1.19274492,628.59,628.23,0.31856193]
[1771640056326,1.19274492,628.6,628.24,0.31856193]
[1771640056526,1.19274492,628.6,628.25,0.31856193]
[1771640056822,1.19274492,628.6,628.26,0.31856193]
[1771640057126,1.19274492,628.6,628.27,0.31856193]
[1771640057326,1.19274492,628.61,628.28,0.31856193]
[1771640057525,1.19274492,628.61,628.29,0.31856193]
[1771640057723,1.19274492,628.61,628.3,0.31856193]
[1771640058026,1.19274492,628.61,628.31,0.31856193]
[1771640058227,1.19274492,628.61,628.32,0.31856193]
[1771640058427,1.19274492,628.61,628.33,0.31856193]
[1771640058623,1.19274492,628.61,628.34,0.31856193]
[1771640058827,1.19274492,628.61,628.35,0.31856193]
[1771640059125,1.19274492,628.61,628.36,0.31856193]
[1771640059324,1.19274492,628.61,628.0,1.18363079]
[1771640059325,1.19274492,628.62,628.37,0.31856193]
[1771640059527,1.19274492,628.62,628.38,0.31856193]
[1771640059727,1.19274492,628.62,628.39,0.31856193]
[1771640059922,1.19274492,628.62,628.4,0.31856193]
[1771640060123,1.19274492,628.62,628.41,0.31856193]
[1771640060327,1.19274492,628.62,628.42,0.31856193]
[1771640060524,1.19274492,628.62,628.43,0.31856193]
[1771640060723,1.19274492,628.62,628.44,0.31856193]
[1771640060926,1.19274492,628.62,628.45,0.31856193]
[1771640061225,1.19274492,628.63,628.46,0.31856193]
[1771640061426,1.19274492,628.63,628.47,0.31856193]
[1771640061625,1.19274492,628.63,628.48,0.31856193]
[1771640061829,1.19274492,628.63,628.49,0.31856193]
[1771640062025,1.19274492,628.63,627.99,1.18363079]
[1771640062026,1.19274492,628.63,628.5,0.31856193]
[1771640062229,1.19274492,628.63,627.99,1.18363079]
[1771640062230,1.19274492,628.63,628.51,0.31856193]
[1771640062427,1.19274492,628.63,628.52,0.31856193]
[1771640062631,1.19274492,628.63,627.98,1.18363079]
[1771640062929,1.19274492,628.63,627.99,0.31850212]
[1771640063128,1.19274492,628.63,628.0,0.31850212]
[1771640063329,1.19274492,628.63,628.01,0.31850212]
[1771640063530,1.19274492,628.63,628.02,0.31850212]
[1771640063732,1.19274492,628.63,628.03,0.31850212]
[1771640063932,1.19274492,628.63,628.04,0.31850212]
[1771640064128,1.19274492,628.63,628.05,0.31850212]
[1771640064429,1.19274492,628.64,628.06,0.31850212]
[1771640064628,1.19274492,628.64,628.07,0.31850212]
[1771640064928,1.19274492,628.66,628.08,0.31850212]
[1771640065127,1.19274492,628.66,628.0,1.18363079]
[1771640065128,1.19274492,628.66,628.09,0.31850212]
[1771640065332,1.19274492,628.66,628.1,0.31850212]
[1771640065534,1.19274492,628.66,628.11,0.31850212]
[1771640065729,1.19274492,628.66,628.12,0.31850212]
[1771640065930,1.19274492,628.66,628.13,0.31850212]
[1771640066233,1.19274492,628.67,628.14,0.31850212]
[1771640066432,1.19274492,628.67,628.0,1.18363079]
[1771640066433,1.19274492,628.67,628.15,0.31850212]
[1771640066629,1.19274492,628.67,628.16,0.31850212]
[1771640066833,1.19274492,628.67,628.17,0.31850212]
[1771640067033,1.19274492,628.67,628.18,0.31850212]
[1771640067233,1.19274492,628.67,628.19,0.31850212]
[1771640067431,1.19274492,628.67,628.2,0.31850212]
[1771640067630,1.19274492,628.67,628.21,0.31850212]
[1771640067829,1.19274492,628.67,628.22,0.31850212]
[1771640068030,1.19274492,628.67,628.23,0.31850212]
[1771640068234,1.19274492,628.67,628.24,0.31850212]
[1771640068534,1.19274492,628.67,628.25,0.31850212]
[1771640068730,1.19274492,628.67,628.26,0.31850212]
[1771640068931,1.19274492,628.67,628.27,0.31850212]
[1771640069129,1.19274492,628.67,628.28,0.31850212]
[1771640069333,1.19274492,628.67,628.29,0.31850212]
[1771640069634,1.19274492,628.67,628.3,0.31850212]
[1771640069834,1.19274492,628.67,628.31,0.31850212]
[1771640070035,1.19274492,628.67,628.32,0.31850212]
[1771640070235,1.19274492,628.68,628.33,0.31850212]
[1771640070436,1.19274492,628.68,628.34,0.31850212]
[1771640070634,1.19274492,628.68,628.35,0.31850212]
[1771640070831,1.19274492,628.68,628.36,0.31850212]
[1771640071032,1.19274492,628.68,628.37,0.31850212]
[1771640071231,1.19274492,628.68,628.38,0.31850212]
[1771640071534,1.19274492,628.68,628.39,0.31850212]
[1771640071832,1.19274492,628.68,628.4,0.31850212]
[1771640072132,1.19274492,628.68,628.41,0.31850212]
[1771640072338,1.19274492,628.68,628.42,0.31850212]
[1771640072535,1.19274492,628.68,628.43,0.31850212]
[1771640072736,1.19274492,628.68,628.44,0.31850212]
[1771640072933,1.19274492,628.68,628.45,0.31850212]
[1771640073137,1.19274492,628.68,628.46,0.31850212]
[1771640073438,1.19274492,628.68,628.47,0.31850212]
[1771640073636,1.19274492,628.68,628.48,0.31850212]
[1771640073838,1.19274492,628.68,628.49,0.31850212]
[1771640074034,1.19274492,628.68,628.5,0.31850212]
[1771640074233,1.19274492,628.68,628.51,0.31850212]
[1771640074437,1.19274492,628.68,628.52,0.31850212]
[1771640074635,1.19274492,628.68,628.53,0.31850212]
[1771640074835,1.19274492,628.68,627.99,1.18363079]
[1771640075035,1.19274492,628.68,628.0,0.31850123]
[1771640075335,1.19274492,628.68,628.01,0.31850123]
[1771640075535,1.19274492,628.68,627.99,1.18363079]
[1771640075536,1.19274492,628.68,628.02,0.31850123]
[1771640075738,1.19274492,628.68,628.03,0.31850123]
[1771640076035,1.19274492,628.68,628.04,0.31850123]
[1771640076235,1.19274492,628.68,628.05,0.31850123]
[1771640076434,1.19274492,628.68,628.06,0.31850123]
[1771640076633,1.19274492,628.68,628.07,0.31850123]
[1771640076832,1.19274492,628.68,628.08,0.31850123]
[1771640077034,1.19274492,628.68,628.09,0.31850123]
[1771640077234,1.19274492,628.68,628.1,0.31850123]
[1771640077434,1.19274492,628.68,628.11,0.31850123]
[1771640077735,1.19274492,628.68,628.12,0.31850123]
[1771640077934,1.19274492,628.68,628.13,0.31850123]
[1771640078139,1.19274492,628.68,628.14,0.31850123]
[1771640078336,1.19274492,628.68,628.15,0.31850123]
[1771640078540,1.19274492,628.68,628.16,0.31850123]
[1771640078740,1.19274492,628.68,628.17,0.31850123]
[1771640079039,1.19274492,628.68,628.18,0.31850123]
[1771640079237,1.19274492,628.68,628.19,0.31850123]
[1771640079437,1.19274492,628.68,628.2,0.31850123]
[1771640079636,1.19274492,628.68,628.21,0.31850123]
[1771640079838,1.19274492,628.68,628.22,0.31850123]
[1771640080041,1.19274492,628.68,628.23,0.31850123]
[1771640080238,1.19274492,628.68,627.99,1.18363079]
[1771640080239,1.19274492,628.68,628.24,0.31850123]
[1771640080438,1.19274492,628.68,628.25,0.31850123]
[1771640080643,1.19274492,628.68,628.26,0.31850123]
[1771640080840,1.19274492,628.68,628.27,0.31850123]
[1771640081040,1.19274492,628.68,628.28,0.31850123]
[1771640081241,1.19274492,628.68,628.29,0.31850123]
[1771640081443,1.19274492,628.68,628.3,0.31850123]
[1771640081639,1.19274492,628.68,628.31,0.31850123]
[1771640081840,1.19274492,628.68,628.32,0.31850123]
[1771640082040,1.19274492,628.68,628.33,0.31850123]
[1771640082244,1.19274492,628.68,628.34,0.31850123]
[1771640082444,1.19274492,628.68,628.35,0.31850123]
[1771640082744,1.19274492,628.68,628.36,0.31850123]
[1771640083044,1.19274492,628.68,628.37,0.31850123]
[1771640083244,1.19274492,628.68,628.38,0.31850123]
[1771640083441,1.19274492,628.68,628.39,0.31850123]
[1771640083640,1.19274492,628.68,628.4,0.31850123]
[1771640083842,1.1910577,628.68,628.41,0.31850123]
[1771640084039,1.1910577,628.68,628.42,0.31850123]
[1771640084243,1.1910577,628.68,628.43,0.31850123]
[1771640084446,1.1910577,628.68,628.44,0.31850123]
[1771640084744,1.1910577,628.68,628.45,0.31850123]
[1771640084944,1.1910577,628.68,628.0,1.18134534]
[1771640084945,1.1910577,628.68,628.46,0.31850123]
[1771640085146,1.1910577,628.68,628.47,0.31850123]
[1771640085343,1.1910577,628.68,628.48,0.31850123]
[1771640085546,1.1910577,628.68,628.49,0.31850123]
[1771640085746,1.1910577,628.68,628.5,0.31850123]
[1771640085946,1.1910577,628.68,628.51,0.31850123]
[1771640086242,1.1910577,628.68,628.52,0.31850123]
[1771640086446,1.1910577,628.68,628.53,0.31850123]
[1771640086741,1.1910577,628.68,628.54,0.31850123]
[1771640086941,1.1910577,628.68,628.0,1.18134534]
[1771640087142,1.1910577,628.68,628.01,0.31850149]
[1771640087342,1.1910577,628.68,628.02,0.31850149]
[1771640087546,1.1910577,628.68,628.03,0.31850149]
[1771640087846,1.1910577,628.68,628.04,0.31850149]
[1771640088042,1.1910577,628.68,628.05,0.31850149]
[1771640088246,1.1910577,628.67,628.06,0.31850149]
[1771640088444,1.1910577,628.67,628.07,0.31850149]
[1771640088642,1.1910577,628.67,628.08,0.31850149]
[1771640088846,1.1910577,628.67,628.09,0.31850149]
[1771640089144,1.1910577,628.67,628.1,0.31850149]
[1771640089443,1.1910577,628.67,628.11,0.31850149]
[1771640089748,1.1910577,628.67,628.12,0.31850149]
[1771640089942,1.1910577,628.67,628.13,0.31850149]
[1771640090146,1.1910577,628.67,628.14,0.31850149]
[1771640090347,1.1910577,628.67,628.15,0.31850149]
[1771640090643,1.1910577,628.67,628.16,0.31850149]
[1771640090846,1.1910577,628.67,628.17,0.31850149]
[1771640091046,1.1910577,628.67,628.18,0.31850149]
[1771640091243,1.1910577,628.67,628.19,0.31850149]
[1771640091445,1.1910577,628.67,628.2,0.31850149]
[1771640091647,1.1910577,628.67,628.21,0.31850149]
[1771640091944,1.1910577,628.67,628.22,0.31850149]
[1771640092147,1.1910577,628.67,628.23,0.31850149]
[1771640092344,1.1910577,628.67,628.01,1.18134534]
[1771640092345,1.1910577,628.67,628.24,0.31850149]
[1771640092549,1.1910577,628.67,628.25,0.31850149]
[1771640092848,1.1910577,628.67,628.26,0.31850149]
[1771640093147,1.1910577,628.67,628.27,0.31850149]